fUSD/lending_fUSD_20240904
["ID","MTS","AMOUNT","RATE_DAILY","PERIOD"]
[337170380,1725480643551,-400.0,0.000146,5]
[337170381,1725480643560,-150.0,0.00014612,2]
[337170382,1725480643569,-432.91,0.00014666,2]
[337170383,1725480643579,-432.91,0.00014666,2]
[337170384,1725480643589,-1546.0,0.00014676,2]
[337170385,1725480643598,-1260.0,0.00014676,2]
[337170386,1725480643607,-624.0,0.00014676,2]
[337170387,1725480643617,-447.0,0.00014676,2]
[337170388,1725480643627,-931.0,0.00014676,2]
[337170389,1725480643636,-552.0,0.00014676,2]
[337170390,1725480643646,-727.117,0.00014676,2]
[337170391,1725480643655,-247.0,0.00014676,2]
[337170392,1725480643664,-432.91,0.0001469,2]
[337170393,1725480643674,-432.91,0.0001469,2]
[337170394,1725480643683,-384.53952351,0.0001469,2]
[337170395,1725480643695,-48.37047649,0.0001469,2]
[337170396,1725480643704,-432.91,0.0001469,2]
[337170397,1725480643713,-339.508,0.000147,2]
[337170398,1725480643722,-1344.25777311,0.000147,2]
[337170399,1725480643733,-311.24,0.000147,2]
[337170404,1725480646439,-1479.90659181,0.000147,2]
[337170405,1725480646458,-6737.35043508,0.000147,2]
[337170406,1725480646467,-407.8642,0.000147,2]
[337170407,1725480646476,-1000.0,0.000147,2]
[337170408,1725480646488,-400.0,0.000147,5]
[337170409,1725480646497,-2500.0,0.000147,2]
[337170410,1725480646513,-264.78882893,0.000147,2]
[337170411,1725480646522,-264.7888289,0.00014722,2]
[337170412,1725480646531,-264.7888289,0.00014744,2]
[337170413,1725480646540,-264.7888289,0.00014767,2]
[337170414,1725480646550,-264.7888289,0.00014789,2]
[337170415,1725480646558,-432.91,0.00014789,2]
[337170416,1725480646567,-432.91,0.0001479,2]
[337170417,1725480646576,-432.91,0.0001479,2]
[337170418,1725480646586,-432.91,0.0001479,2]
[337170419,1725480646595,-432.91,0.0001479,2]
[337170420,1725480646603,-432.91,0.0001479,2]
[337170421,1725480646613,-432.91,0.0001479,2]
[337170422,1725480646622,-432.91,0.0001479,2]
[337170423,1725480646631,-432.91,0.0001479,2]
[337170424,1725480646640,-432.91,0.0001479,2]
[337170425,1725480646648,-432.91,0.0001479,2]
[337170426,1725480646657,-432.91,0.0001479,2]
[337170427,1725480646667,-432.91,0.0001479,2]
[337170428,1725480646675,-432.91,0.0001479,2]
[337170429,1725480646684,-432.91,0.0001479,2]
[337170430,1725480646694,-432.91,0.0001479,2]
[337170431,1725480646702,-432.91,0.0001479,2]
[337170432,1725480646711,-432.91,0.0001479,2]
[337170433,1725480646720,-432.91,0.0001479,2]
[337170434,1725480646730,-432.91,0.0001479,2]
[337170435,1725480646739,-432.91,0.0001479,2]
[337170436,1725480646748,-432.91,0.0001479,2]
[337170437,1725480646757,-432.91,0.0001479,2]
[337170438,1725480646767,-432.91,0.0001479,2]
[337170439,1725480646776,-432.91,0.0001479,2]
[337170440,1725480646786,-432.91,0.0001479,2]
[337170441,1725480646796,-432.91,0.0001479,2]
[337170442,1725480646805,-432.91,0.0001479,2]
[337170443,1725480646814,-587.14,0.0001479,3]
[337170444,1725480646823,-500.0,0.00014799,2]
[337170445,1725480646832,-205.58153379,0.00014799,2]
[337170446,1725480646841,-25057.54589715,0.000148,2]
[337170447,1725480646851,-50204.55437935,0.000148,2]
[337170448,1725480646860,-4575.8927837,0.000148,2]
[337170449,1725480646892,-43420.1541163,0.000148,2]
[337170450,1725480646902,-176.5436,0.000148,2]
[337170451,1725480646911,-268.0911,0.000148,2]
[337170452,1725480646920,-168.338294,0.000148,2]
[337170453,1725480646930,-151.0,0.000148,2]
[337170454,1725480646939,-151.0,0.000148,2]
[337170455,1725480646948,-151.0,0.000148,2]
[337170456,1725480646957,-151.0,0.000148,2]
[337170457,1725480646966,-267.0,0.000148,2]
[337170458,1725480646976,-151.0,0.000148,2]
[337170459,1725480646985,-151.0,0.000148,2]
[337170460,1725480646994,-234.097107,0.000148,2]
[337170461,1725480647003,-234.097107,0.000148,2]
[337170462,1725480647014,-174.073508,0.000148,2]
[337170463,1725480647024,-151.0,0.000148,2]
[337170464,1725480647033,-700.0,0.000148,5]
[337170465,1725480647042,-331.43,0.0001481,2]
[337170466,1725480647051,-264.7888289,0.00014811,2]
[337170467,1725480647061,-264.7888289,0.00014833,2]
[337170468,1725480647070,-264.7888289,0.00014856,2]
[337170469,1725480647079,-238.385,0.0001486,2]
[337170470,1725480647089,-264.7888289,0.00014878,2]
[337170471,1725480647098,-2000.0,0.0001488,2]
[337170472,1725480647108,-500.0,0.0001488,2]
[337170473,1725480647117,-500.0,0.0001488,2]
[337170474,1725480647127,-200.0,0.0001488,2]
[337170475,1725480647136,-151.0,0.0001488,2]
[337170476,1725480647146,-209.781088,0.0001488,2]
[337170477,1725480647155,-151.0,0.0001488,2]
[337170478,1725480647165,-410.579021,0.0001488,2]
[337170479,1725480647175,-410.579021,0.0001488,2]
[337170480,1725480647185,-730.0594,0.000149,2]
[337170481,1725480647194,-2122.6584,0.000149,2]
[337170482,1725480647204,-8988.697,0.000149,2]
[337170483,1725480647214,-1544.5979,0.000149,2]
[337170484,1725480647223,-1000.0,0.000149,2]
[337170485,1725480647232,-264.7888289,0.000149,2]
[337170486,1725480647242,-150.0,0.00014986,2]
[337170487,1725480647251,-150.0,0.00014986,2]
[337170488,1725480647263,-280.42366487,0.00014986,2]
[337170489,1725480647272,-161.22266981,0.00014986,2]
[337170490,1725480647281,-150.0,0.00014986,2]
[337170491,1725480647292,-1195.78791963,0.0001499,3]
[337170492,1725480647301,-3188.76778568,0.0001499,3]
[337170493,1725480647310,-150.83,0.0001499,2]
[337170494,1725480647319,-11459.20092378,0.00015,2]
[337170495,1725480797864,2000.0,0.00026997,120]
[337170496,1725480806188,500.0,0.00026997,120]
[337170497,1725480817150,163.598438,0.00026997,120]
[337170498,1725480838870,500.0,0.00011911,2]
[337170499,1725480839209,500.0,0.00011911,2]
[337170500,1725480839519,500.0,0.00011911,2]
[337170501,1725480839825,150.0,0.00011911,2]
[337170502,1725480839850,350.0,0.00011911,2]
[337170503,1725480840141,150.0,0.00011911,2]
[337170504,1725480840161,150.0,0.00011911,2]
[337170505,1725480840183,150.0,0.00011911,2]
[337170506,1725480840208,325.0,0.00011911,2]
[337170508,1725480955251,150.0,0.00012,2]
[337170509,1725480955274,150.0,0.00012,2]
[337170510,1725480955300,150.0,0.00012,2]
[337170511,1725480955320,132.32,0.00012,2]
[337170512,1725480978003,150.0,0.00012,2]
[337170513,1725480978025,150.0,0.00012,2]
[337170514,1725480978048,150.0,0.00012,2]
[337170515,1725480978071,130.0,0.00012,2]
[337170516,1725480998373,20.0,0.00011671,2]
[337170517,1725480998395,163.867425,0.00011671,2]
[337170518,1725480998420,490.052575,0.00011671,2]
[337170519,1725481236994,195.01,0.00010959,2]
[337170520,1725481398122,2000.0,0.00026999,120]
[337170521,1725481680250,452.40450032,0.0001,2]
[337170522,1725481683315,184.12540866,0.00010999,2]
[337170524,1725481735524,550.0,0.00011,2]
[337170526,1725481753538,640.22,0.00011072,2]
[337170528,1725481807785,-1183.61280388,0.00012875,2]
[337170533,1725481832418,-353.0,0.00012874,2]
[337170535,1725481832429,-332.05424735,0.00012875,2]
[337170537,1725481832445,-450.97366177,0.00012875,2]
[337170538,1725481832456,-337.55956317,0.0001298,2]
[337170539,1725481832468,-512.44043683,0.0001298,2]
[337170540,1725481832478,-250.0,0.00013007,2]
[337170541,1725481832488,-163.72,0.00013071,2]
[337170542,1725481832497,-250.0,0.00013071,2]
[337170543,1725481832506,-936.78,0.00013122,2]
[337170544,1725481832515,-360.0,0.00013134,2]
[337170545,1725481832524,-1500.0,0.0001315,2]
[337170546,1725481832534,-250.0,0.00013177,2]
[337170547,1725481832543,-150.0,0.00013182,2]
[337170548,1725481832553,-198.86,0.0001324,2]
[337170549,1725481832562,-640.22,0.00013336,2]
[337170550,1725481832571,-300.0,0.0001334,2]
[337170551,1725481832581,-23900.0,0.00013341,2]
[337170552,1725481832590,-499.99,0.00013451,2]
[337170553,1725481832599,-150.0,0.00013488,2]
[337170554,1725481832608,-640.0,0.00013495,2]
[337170555,1725481832617,-165.35,0.00013588,2]
[337170556,1725481832626,-500.0,0.00013699,2]
[337170557,1725481832636,-261.41,0.00013741,2]
[337170558,1725481832645,-166.85,0.00013753,2]
[337170559,1725481832654,-421.99,0.00013841,2]
[337170560,1725481832663,-150.31,0.00014036,2]
[337170561,1725481832672,-150.31,0.00014059,2]
[337170562,1725481832681,-1.97746263,0.00014083,2]
[337170570,1725481838523,-148.33253737,0.00014083,2]
[337170571,1725481838533,-150.31,0.00014106,2]
[337170572,1725481838542,-6.30151857,0.00014141,2]
[337170573,1725481838554,-415.68848143,0.00014141,2]
[337170574,1725481838564,-366.84306774,0.00014409,2]
[337170687,1725481840246,-308.94361421,0.00014409,2]
[337170688,1725481840356,-51.21331805,0.00014409,2]
[337170689,1725481840366,-504.49,0.000145,2]
[337170690,1725481840376,-744.0477,0.000146,2]
[337170691,1725481840386,-352.6593,0.000146,2]
[337170692,1725481840395,-1000.0,0.000146,2]
[337170693,1725481840405,-2637.99584609,0.000146,2]
[337170694,1725481840416,-2637.99584601,0.00014633,2]
[337170695,1725481840425,-696.99659264,0.00014645,2]
[337170696,1725481840435,-2637.99584601,0.00014667,2]
[337170697,1725481840444,-282.54859162,0.00014672,2]
[337170698,1725481840453,-696.99659262,0.00014681,2]
[337170699,1725481840463,-1539.61,0.00014688,2]
[337170700,1725481840472,-13467.0,0.00014688,2]
[337170701,1725481840481,-447.0,0.00014688,2]
[337170702,1725481840491,-331.85122983,0.00014699,2]
[337170703,1725481840500,-1000.0,0.000147,2]
[337170704,1725481840509,-245000.0,0.000147,2]
[337170705,1725481840518,-3515.1513,0.000147,2]
[337170706,1725481840528,-100000.0,0.000147,2]
[337170707,1725481840537,-2637.99584601,0.000147,2]
[337170708,1725481840546,-696.99659262,0.00014718,2]
[337170709,1725481840554,-2637.99584601,0.00014733,2]
[337170710,1725481840563,-150.0,0.00014745,2]
[337170711,1725481840571,-696.99659262,0.00014754,2]
[337170712,1725481840581,-2637.99584601,0.00014767,2]
[337170713,1725481840590,-360.0,0.00014776,2]
[337170714,1725481840600,-1899.0,0.00014788,2]
[337170715,1725481840610,-552.0,0.00014788,2]
[337170716,1725481840622,-805.0,0.00014788,2]
[337170717,1725481840631,-300.0,0.00014788,2]
[337170718,1725481840642,-3340.0,0.00014788,2]
[337170719,1725481840652,-1039.0,0.00014788,2]
[337170720,1725481840661,-248.0,0.00014788,2]
[337170721,1725481840672,-1078.0,0.00014788,2]
[337170722,1725481840682,-278.0,0.00014788,2]
[337170723,1725481840694,-5855.0,0.00014788,2]
[337170724,1725481840702,-3733.0,0.00014788,2]
[337170725,1725481840713,-624.0,0.00014788,2]
[337170726,1725481840723,-1260.0,0.00014788,2]
[337170727,1725481840732,-696.99659262,0.00014791,2]
[337170728,1725481840743,-2637.99584601,0.000148,2]
[337170729,1725481840752,-696.99659262,0.00014827,2]
[337170730,1725481840762,-2637.99584601,0.00014833,2]
[337170731,1725481840772,-297.21451,0.0001486,2]
[337170732,1725481840783,-696.99659262,0.00014864,2]
[337170733,1725481840792,-190.708,0.00014869,2]
[337170734,1725481840802,-150.0,0.00014873,2]
[337170735,1725481840810,-150.0,0.00014877,2]
[337170736,1725481840819,-198.86,0.00014895,2]
[337170737,1725481840829,-1000.0,0.000149,3]
[337170738,1725481840838,-1000.0,0.000149,3]
[337170739,1725481840847,-1181.0,0.000149,4]
[337170740,1725481840857,-1000.0,0.000149,3]
[337170741,1725481840866,-1000.0,0.000149,3]
[337170742,1725481840875,-1000.0,0.000149,4]
[337170743,1725481840886,-1000.0,0.000149,3]
[337170744,1725481840898,-496.0,0.000149,3]
[337170745,1725481840906,-1000.0,0.000149,3]
[337170746,1725481840915,-1000.0,0.000149,3]
[337170747,1725481840924,-653.0,0.000149,3]
[337170748,1725481840934,-151.0,0.000149,2]
[337170749,1725481840943,-151.0,0.000149,2]
[337170750,1725481840952,-151.0,0.000149,2]
[337170751,1725481840963,-151.0,0.000149,2]
[337170752,1725481840974,-151.0,0.000149,2]
[337170753,1725481840983,-151.0,0.000149,2]
[337170754,1725481840992,-151.612075,0.000149,2]
[337170755,1725481841001,-172.00474581,0.000149,2]
[337170756,1725481841010,-211.88152153,0.000149,2]
[337170757,1725481841019,-1058.69852512,0.000149,2]
[337170758,1725481841029,-696.99659262,0.000149,2]
[337170759,1725481841039,-578.80229398,0.000149,2]
[337170760,1725481841048,-297.21451,0.0001494,2]
[337170761,1725481841057,-150.0,0.00014942,2]
[337170762,1725481841066,-1500.0,0.00014972,2]
[337170763,1725481841075,-500.0,0.00014973,2]
[337170764,1725481841084,-150.0,0.00014974,2]
[337170765,1725481841094,-150.5068822,0.00014984,2]
[337170766,1725481841103,-439.58526808,0.0001499,2]
[337170767,1725481841112,-439.58526808,0.0001499,2]
[337170768,1725481841122,-439.58526808,0.0001499,2]
[337170769,1725481841131,-151.74,0.0001499,2]
[337170770,1725481841140,-151.74,0.0001499,2]
[337170771,1725481841150,-151.74,0.0001499,2]
[337170772,1725481841160,-151.74,0.0001499,2]
[337170773,1725481841170,-151.74,0.0001499,2]
[337170774,1725481841179,-151.74,0.0001499,2]
[337170775,1725481841189,-151.74,0.0001499,2]
[337170776,1725481841198,-151.74,0.0001499,2]
[337170777,1725481841207,-151.74,0.0001499,2]
[337170778,1725481841216,-151.74,0.0001499,2]
[337170779,1725481841226,-151.74,0.0001499,2]
[337170780,1725481841235,-151.74,0.0001499,2]
[337170781,1725481841245,-151.74,0.0001499,2]
[337170782,1725481841254,-151.74,0.0001499,2]
[337170783,1725481841263,-151.74,0.0001499,2]
[337170784,1725481841273,-151.74,0.0001499,2]
[337170785,1725481841282,-151.74,0.0001499,2]
[337170786,1725481841291,-151.74,0.0001499,2]
[337170787,1725481841300,-151.74,0.0001499,2]
[337170788,1725481841310,-151.74,0.0001499,2]
[337170789,1725481841318,-151.74,0.0001499,2]
[337170790,1725481841328,-151.74,0.0001499,2]
[337170791,1725481841337,-151.74,0.0001499,2]
[337170792,1725481841346,-151.74,0.0001499,2]
[337170793,1725481841355,-151.74,0.0001499,2]
[337170794,1725481841365,-151.74,0.0001499,2]
[337170795,1725481841374,-151.74,0.0001499,2]
[337170796,1725481841383,-151.74,0.0001499,2]
[337170797,1725481841392,-151.74,0.0001499,2]
[337170798,1725481841401,-151.74,0.0001499,2]
[337170799,1725481841411,-151.74,0.0001499,2]
[337170800,1725481841420,-151.74,0.0001499,2]
[337170801,1725481841429,-151.74,0.0001499,2]
[337170802,1725481841439,-151.74,0.0001499,2]
[337170803,1725481841448,-151.74,0.0001499,2]
[337170804,1725481841457,-241.33539938,0.00014999,2]
[337170805,1725481841467,-215.3639663,0.00014999,2]
[337170806,1725481841477,-553.0,0.00015,2]
[337170807,1725481841486,-41875.91802623,0.00015,2]
[337170808,1725481841495,-1193004.76226276,0.00015,2]
[337170809,1725481841504,-4615976.95882504,0.00015,2]
[337170810,1725481841512,-41891.84022987,0.00015,2]
[337170811,1725481841525,-548.275,0.00015,2]
[337170826,1725481999054,2000.0,0.00026846,120]
[337170827,1725482006072,500.0,0.00025346,120]
[337170828,1725482252006,537.71,0.00010959,2]
[337170829,1725482279084,635.18,0.00011984,2]
[337170830,1725482402749,150.0,0.00011984,2]
[337170831,1725482402933,150.0,0.00011984,2]
[337170832,1725482403373,150.0,0.00011984,2]
[337170833,1725482403870,150.0,0.00011984,2]
[337170834,1725482404103,150.0,0.00011984,2]
[337170835,1725482404297,150.0,0.00011984,2]
[337170836,1725482404496,150.0,0.00011984,2]
[337170837,1725482404818,150.0,0.00011984,2]
[337170838,1725482404974,150.0,0.00011984,2]
[337170839,1725482405136,150.0,0.00011984,2]
[337170840,1725482405330,150.0,0.00011984,2]
[337170841,1725482405867,150.0,0.00011984,2]
[337170842,1725482406032,150.0,0.00011984,2]
[337170843,1725482406245,150.0,0.00011984,2]
[337170844,1725482406464,150.0,0.00011984,2]
[337170845,1725482406666,150.0,0.00011984,2]
[337170846,1725482406878,150.0,0.00011984,2]
[337170847,1725482407230,150.0,0.00011984,2]
[337170848,1725482407444,150.0,0.00011984,2]
[337170849,1725482407977,150.0,0.00011984,2]
[337170850,1725482408156,150.0,0.00011984,2]
[337170851,1725482408389,154.67203195,0.00011984,2]
[337170852,1725482429960,4100.0,8.22e-05,2]
[337170853,1725482431551,4100.0,9.59e-05,2]
[337170854,1725482432861,4100.0,0.0001096,2]
[337170855,1725482434444,4100.0,0.0001233,2]
[337170856,1725482449403,3700.0,8.22e-05,2]
[337170857,1725482449567,1100.0,8.22e-05,2]
[337170858,1725482450954,3700.0,9.59e-05,2]
[337170859,1725482451142,256.38,0.00010703,2]
[337170860,1725482451366,1100.0,9.59e-05,2]
[337170861,1725482451394,256.38,0.00011773,2]
[337170862,1725482453085,3700.0,0.0001096,2]
[337170863,1725482453210,1100.0,0.0001096,2]
[337170864,1725482454120,3700.0,0.0001233,2]
[337170865,1725482454580,1100.0,0.0001233,2]
[337170866,1725482472362,600.0,8.22e-05,2]
[337170867,1725482473377,900.0,8.22e-05,2]
[337170868,1725482474311,600.0,9.59e-05,2]
[337170869,1725482474973,900.0,9.59e-05,2]
[337170870,1725482475535,600.0,0.0001096,2]
[337170871,1725482476519,900.0,0.0001096,2]
[337170872,1725482477124,600.0,0.0001233,2]
[337170873,1725482478078,900.0,0.0001233,2]
[337170874,1725482498522,283.8002076,0.00027,120]
[337170875,1725482600231,2000.0,0.00026983,120]
[337170876,1725482608409,500.0,0.00026983,120]
[337170877,1725482771899,1655.0,0.00027,120]
[337170878,1725482903172,603.42,0.00011133,2]
[337170879,1725482968191,-402.53081148,0.00012744,2]
[337170880,1725482986775,-462.86140115,0.00012744,2]
[337170881,1725482986796,-220.26073675,0.00012844,2]
[337170882,1725482986818,-256.38,0.00012844,2]
[337170883,1725482986840,-197.0,0.00012846,2]
[337170884,1725482986862,-155.30413885,0.00012847,2]
[337170885,1725482986883,-192.43737116,0.00012847,2]
[337170886,1725482986903,-250.0,0.00012942,2]
[337170887,1725482986922,-165.26,0.00012942,2]
[337170888,1725482986943,-200.0,0.0001304,2]
[337170889,1725482986964,-153.19,0.00013078,2]
[337170890,1725482986984,-150.0,0.00013149,2]
[337170891,1725482987004,-250.0,0.00013149,2]
[337170892,1725482987025,-300.0,0.00013158,2]
[337170893,1725482987047,-160.99,0.00013159,2]
[337170894,1725482987068,-13275.31635209,0.00013159,2]
[337170895,1725483026711,-300.0,0.00013158,2]
[337170896,1725483026906,200.0,0.00013057,2]
[337170910,1725483032480,-10624.68364791,0.00013159,2]
[337170912,1725483032491,-166.85,0.00013182,2]
[337170914,1725483032502,-500.0,0.00013196,2]
[337170916,1725483032514,-216.0,0.00013199,2]
[337170918,1725483032524,-150.0,0.00013205,2]
[337170920,1725483032535,-250.0,0.00013242,2]
[337170922,1725483032545,-499.99,0.00013242,2]
[337170923,1725483032557,-150.0,0.00013257,2]
[337170924,1725483032568,-193.12,0.00013339,2]
[337170925,1725483032580,-468.39,0.00013339,2]
[337170926,1725483032592,-603.42,0.00013397,2]
[337170927,1725483032604,-150.0,0.00013488,2]
[337170928,1725483032615,-150.0,0.00013488,2]
[337170929,1725483032626,-79.0288437,0.00013488,2]
[337170930,1725483032641,-70.9711563,0.00013488,2]
[337170931,1725483032652,-151.62886511,0.00013488,2]
[337170932,1725483032665,-150.0,0.00013488,2]
[337170933,1725483032677,-155.30413884,0.00013683,2]
[337170934,1725483032699,-500.0,0.00013699,2]
[337170935,1725483032713,-151.7,0.00013746,2]
[337170936,1725483032725,-151.7,0.0001375,2]
[337170937,1725483032736,-109.13469438,0.00013754,2]
[337170938,1725483032822,-40.86530562,0.00013754,2]
[337170939,1725483032835,-151.7,0.00013754,2]
[337170940,1725483032848,-151.7,0.00013758,2]
[337170941,1725483032860,-151.7,0.00013762,2]
[337170942,1725483032871,-151.7,0.00013766,2]
[337170943,1725483032881,-58.44500871,0.00013771,2]
[337170944,1725483032895,-93.25499129,0.00013771,2]
[337170945,1725483032906,-151.7,0.00013775,2]
[337170946,1725483032916,-151.7,0.00013779,2]
[337170947,1725483032927,-151.7,0.00013783,2]
[337170948,1725483032945,-151.7,0.00013787,2]
[337170949,1725483032958,-150.0,0.00013787,2]
[337170950,1725483032969,-95.14980593,0.00013791,2]
[337170951,1725483033006,-56.55019407,0.00013791,2]
[337170952,1725483033016,-151.7,0.00013795,2]
[337170953,1725483033027,-151.7,0.00013799,2]
[337170954,1725483033038,-151.7,0.00013803,2]
[337170955,1725483033050,-116.20279189,0.00013807,2]
[337170956,1725483033074,-35.49720811,0.00013807,2]
[337170957,1725483033086,-151.7,0.00013811,2]
[337170958,1725483033098,-151.7,0.00013815,2]
[337170959,1725483033109,-184.0,0.00013874,2]
[337170960,1725483033120,-256.38,0.00013914,2]
[337170961,1725483033130,-784.0,0.00013977,2]
[337170962,1725483033141,-169.53,0.00014061,2]
[337170963,1725483033151,-150.0,0.00014087,2]
[337170964,1725483033162,-150.0,0.00014387,2]
[337170965,1725483033173,-420.0,0.00014428,2]
[337170966,1725483033184,-428.82,0.000145,2]
[337170967,1725483033205,-1000.0,0.000146,2]
[337170968,1725483033215,-282.54859162,0.0001468,2]
[337170969,1725483033225,-150.0,0.00014687,2]
[337170970,1725483033239,-216.0,0.00014849,2]
[337170971,1725483033250,-270.1105,0.0001485,2]
[337170972,1725483033261,-152.567,0.0001488,2]
[337170973,1725483033272,-500.0,0.0001488,2]
[337170974,1725483033284,-4721.43331686,0.0001489,2]
[337171028,1725483038424,-1078.30371341,0.0001489,2]
[337171029,1725483038435,-475.14527595,0.0001489,2]
[337171030,1725483038449,-279.36,0.0001489,2]
[337171031,1725483038460,-567.02253439,0.0001489,2]
[337171032,1725483038471,-28151.01971406,0.0001489,2]
[337171033,1725483038482,-4461.84790807,0.0001489,2]
[337171034,1725483038496,-5533.35431226,0.0001489,2]
[337171035,1725483038507,-2939.9999999,0.0001489,2]
[337171036,1725483038526,-10523.68929246,0.0001489,2]
[337171037,1725483038536,-510.0459,0.00014895,2]
[337171038,1725483038546,-16446.99220225,0.000149,2]
[337171039,1725483038559,-15836.41174621,0.000149,2]
[337171040,1725483038578,-13635.24725154,0.000149,2]
[337171041,1725483038588,-4628.66774846,0.000149,2]
[337171042,1725483038619,-4392.91305409,0.000149,2]
[337171043,1725483038631,-264.24,0.000149,2]
[337171044,1725483038685,-742.03266794,0.000149,2]
[337171045,1725483038699,-540.65357155,0.000149,2]
[337171046,1725483038751,-1266.25068988,0.000149,2]
[337171047,1725483038762,-464.27999997,0.000149,2]
[337171048,1725483038773,-1051.74850456,0.000149,2]
[337171049,1725483038784,-1364.83123837,0.000149,2]
[337171050,1725483038816,-1698.02186945,0.000149,2]
[337171172,1725483040355,-1086.34670665,0.000149,2]
[337171173,1725483040368,-12936.32605079,0.000149,2]
[337171175,1725483040380,-1502.36748721,0.000149,2]
[337171176,1725483040391,-1352.08206824,0.000149,2]
[337171177,1725483040414,-1462.97855208,0.000149,2]
[337171178,1725483040425,-1068.28760767,0.000149,2]
[337171179,1725483040789,-837.74750378,0.000149,2]
[337171181,1725483040799,-2806.8,0.000149,2]
[337171182,1725483040810,-320.10297877,0.000149,2]
[337171183,1725483040843,-1785.82599457,0.000149,2]
[337171185,1725483040855,-7664.49450597,0.000149,2]
[337171187,1725483040864,-1257.361,0.000149,2]
[337171189,1725483040873,-292.624,0.000149,2]
[337171191,1725483040882,-810.0,0.000149,2]
[337171193,1725483040891,-556.0,0.000149,2]
[337171195,1725483040900,-931.0,0.000149,2]
[337171197,1725483040909,-150.0,0.000149,2]
[337171199,1725483040918,-445.554,0.000149,2]
[337171201,1725483040927,-623.69086932,0.000149,2]
[337171203,1725483040936,-150.0,0.000149,2]
[337171204,1725483040947,-150.612,0.000149,2]
[337171206,1725483040956,-153.0,0.000149,2]
[337171208,1725483040965,-5819.74143324,0.000149,2]
[337171211,1725483040976,-35.25856676,0.000149,2]
[337171212,1725483040985,-324.33086522,0.000149,2]
[337171215,1725483040997,-643.23488832,0.000149,2]
[337171218,1725483041019,-12491.43424646,0.000149,2]
[337171220,1725483041027,-286.683,0.000149,2]
[337171222,1725483041037,-3510.266,0.000149,2]
[337171224,1725483041046,-1144.0,0.000149,2]
[337171226,1725483041055,-435.124,0.000149,2]
[337171228,1725483041063,-500.0,0.00014973,2]
[337171230,1725483041072,-500.0,0.00014973,2]
[337171231,1725483041081,-271.30458156,0.00014973,2]
[337171233,1725483041090,-218.33820238,0.00014984,2]
[337171236,1725483041102,-38.04179762,0.00014984,2]
[337171238,1725483041110,-150.0,0.00014986,2]
[337171240,1725483041120,-181.01186115,0.00014986,2]
[337171242,1725483041129,-151.76,0.0001499,2]
[337171244,1725483041138,-267.303149,0.0001499,2]
[337171246,1725483041147,-267.303149,0.0001499,2]
[337171247,1725483041157,-267.303149,0.0001499,2]
[337171249,1725483041166,-267.303149,0.0001499,2]
[337171250,1725483041175,-267.303149,0.0001499,2]
[337171252,1725483041185,-385.6435991,0.0001499,2]
[337171254,1725483041196,-484.952065,0.0001499,2]
[337171256,1725483041206,-584.260531,0.0001499,2]
[337171258,1725483041216,-683.5689969,0.0001499,2]